fUSD/lending_fUSD_20250617
["ID","MTS","AMOUNT","RATE_DAILY","PERIOD"]
[366296902,1750179044248,-490.0,0.00016438,2]
[366296904,1750179044258,-460.689841,0.00016438,2]
[366296906,1750179044268,-490.0,0.00016438,2]
[366296908,1750179044279,-460.689841,0.00016438,2]
[366296910,1750179044290,-490.0,0.00016438,2]
[366296912,1750179044300,-614.86789611,0.00016438,2]
[366296914,1750179044311,-490.0,0.00016438,2]
[366296916,1750179044323,-490.0,0.00016438,2]
[366296918,1750179044333,-762.41,0.00016438,2]
[366296920,1750179044343,-490.66940247,0.00016438,2]
[366296923,1750179044353,-654.96,0.00016438,2]
[366296925,1750179044364,-710.14,0.00016438,2]
[366296927,1750179044373,-490.0,0.00016438,2]
[366296929,1750179044383,-460.689841,0.00016438,2]
[366296930,1750179044393,-199.32761941,0.00016438,2]
[366296931,1750179044405,-460.689841,0.00016438,2]
[366296932,1750179044416,-490.0,0.00016438,2]
[366296933,1750179044426,-460.689841,0.00016438,2]
[366296935,1750179044438,-490.0,0.00016438,2]
[366296937,1750179044447,-649.55,0.00016438,2]
[366296939,1750179044456,-490.0,0.00016438,2]
[366296941,1750179044466,-490.0,0.00016438,2]
[366296942,1750179044476,-490.0,0.00016438,2]
[366296944,1750179044487,-849.79,0.00016438,2]
[366296947,1750179044498,-490.0,0.00016438,2]
[366296949,1750179044509,-1776.33,0.00016438,2]
[366296951,1750179044519,-490.0,0.00016438,2]
[366296953,1750179044529,-490.0,0.00016438,2]
[366296955,1750179044538,-490.0,0.00016438,2]
[366296956,1750179044547,-490.0,0.00016438,2]
[366296959,1750179044557,-715.35,0.00016438,2]
[366296960,1750179044567,-490.0,0.00016438,2]
[366296962,1750179044577,-490.0,0.00016438,2]
[366296965,1750179044587,-490.0,0.00016438,2]
[366296967,1750179044597,-490.0,0.00016438,2]
[366296969,1750179044608,-490.0,0.00016438,2]
[366296971,1750179044618,-490.0,0.00016438,2]
[366296973,1750179044627,-490.0,0.00016438,2]
[366296975,1750179044637,-490.0,0.00016438,2]
[366296977,1750179044647,-490.0,0.00016438,2]
[366296979,1750179044656,-863.5,0.00016438,2]
[366296981,1750179044666,-500.0,0.00016438,2]
[366296983,1750179044677,-500.0,0.00016438,2]
[366296985,1750179044692,-500.0,0.00016438,2]
[366296987,1750179044701,-490.0,0.00016438,2]
[366296989,1750179044711,-490.0,0.00016438,2]
[366296991,1750179044721,-500.0,0.00016438,2]
[366296993,1750179044730,-500.0,0.00016438,2]
[366296995,1750179044739,-1374.9,0.00016438,2]
[366296997,1750179044749,-490.0,0.00016438,2]
[366296999,1750179044759,-1328.44,0.00016438,2]
[366297001,1750179044768,-490.0,0.00016438,2]
[366297003,1750179044778,-490.0,0.00016438,2]
[366297005,1750179044788,-1261.29,0.00016438,2]
[366297007,1750179044797,-490.0,0.00016438,2]
[366297009,1750179044807,-490.0,0.00016438,2]
[366297011,1750179044816,-480.0,0.00016438,2]
[366297013,1750179044826,-490.0,0.00016438,2]
[366297015,1750179044835,-475.14487803,0.00016438,2]
[366297017,1750179044845,-490.0,0.00016438,2]
[366297019,1750179044854,-1384.65,0.00016438,2]
[366297021,1750179044863,-490.0,0.00016438,2]
[366297023,1750179044873,-490.0,0.00016438,2]
[366297025,1750179044883,-490.0,0.00016438,2]
[366297027,1750179044892,-1047.19,0.00016438,2]
[366297029,1750179044902,-717.32,0.00016438,2]
[366297031,1750179044911,-490.0,0.00016438,2]
[366297033,1750179044921,-490.0,0.00016438,2]
[366297035,1750179044930,-490.0,0.00016438,2]
[366297037,1750179044941,-490.0,0.00016438,2]
[366297039,1750179044951,-664.21,0.00016438,2]
[366297040,1750179044961,-608.47,0.00016438,2]
[366297042,1750179044971,-490.0,0.00016438,2]
[366297044,1750179044981,-1039.02,0.00016438,2]
[366297047,1750179044991,-1949.19,0.00016438,2]
[366297048,1750179045000,-490.0,0.00016438,2]
[366297051,1750179045010,-490.0,0.00016438,2]
[366297052,1750179045019,-959.41,0.00016438,2]
[366297054,1750179045029,-490.0,0.00016438,2]
[366297056,1750179045037,-490.0,0.00016438,2]
[366297058,1750179045046,-490.0,0.00016438,2]
[366297060,1750179045055,-576.92,0.00016438,2]
[366297062,1750179045064,-490.0,0.00016438,2]
[366297064,1750179045072,-588.0,0.00016438,2]
[366297066,1750179045081,-303.12168633,0.00016438,2]
[366297068,1750179045092,-490.0,0.00016438,2]
[366297070,1750179045101,-1419.3,0.00016438,2]
[366297072,1750179045111,-490.0,0.00016438,2]
[366297074,1750179045120,-490.0,0.00016438,2]
[366297076,1750179045129,-1575.16,0.00016438,2]
[366297078,1750179045138,-490.0,0.00016438,2]
[366297080,1750179045147,-490.0,0.00016438,2]
[366297082,1750179045156,-490.0,0.00016438,2]
[366297084,1750179045165,-490.0,0.00016438,2]
[366297086,1750179045174,-490.0,0.00016438,2]
[366297088,1750179045184,-813.29,0.00016438,2]
[366297090,1750179045194,-490.0,0.00016438,2]
[366297092,1750179045204,-490.0,0.00016438,2]
[366297094,1750179045214,-490.0,0.00016438,2]
[366297096,1750179045224,-490.0,0.00016438,2]
[366297098,1750179045233,-490.0,0.00016438,2]
[366297100,1750179045243,-497.13,0.00016438,2]
[366297102,1750179045253,-223.60522494,0.00016438,2]
[366297103,1750179045262,-490.0,0.00016438,2]
[366297104,1750179045272,-490.0,0.00016438,2]
[366297105,1750179045281,-490.0,0.00016438,2]
[366297106,1750179045291,-474.60498639,0.00016438,2]
[366297108,1750179045300,-501.63136302,0.00016438,2]
[366297110,1750179045309,-490.0,0.00016438,2]
[366297112,1750179045319,-490.0,0.00016438,2]
[366297114,1750179045328,-490.0,0.00016438,2]
[366297116,1750179045338,-921.92,0.00016438,2]
[366297118,1750179045348,-709.99,0.00016438,2]
[366297120,1750179045358,-490.0,0.00016438,2]
[366297122,1750179045368,-490.0,0.00016438,2]
[366297124,1750179045378,-490.0,0.00016438,2]
[366297126,1750179045388,-490.0,0.00016438,2]
[366297128,1750179045397,-883.88,0.00016438,2]
[366297131,1750179045407,-754.55,0.00016438,2]
[366297133,1750179045416,-490.0,0.00016438,2]
[366297135,1750179045426,-490.0,0.00016438,2]
[366297137,1750179045435,-490.0,0.00016438,2]
[366297139,1750179045444,-353.51361141,0.00016438,2]
[366297140,1750179045454,-485.82997766,0.00016438,2]
[366297143,1750179045464,-490.0,0.00016438,2]
[366297145,1750179045473,-267.38879712,0.00016438,2]
[366297146,1750179045484,-490.0,0.00016438,2]
[366297149,1750179045494,-490.0,0.00016438,2]
[366297151,1750179045507,-490.0,0.00016438,2]
[366297153,1750179045516,-1099.27,0.00016438,2]
[366297155,1750179045526,-836.32,0.00016438,2]
[366297157,1750179045535,-1250.98,0.00016438,2]
[366297159,1750179045545,-490.0,0.00016438,2]
[366297162,1750179045554,-490.0,0.00016438,2]
[366297164,1750179045563,-490.0,0.00016438,2]
[366297167,1750179045573,-490.0,0.00016438,2]
[366297170,1750179045584,-490.0,0.00016438,2]
[366297173,1750179045593,-490.0,0.00016438,2]
[366297176,1750179045604,-490.0,0.00016438,2]
[366297179,1750179045614,-516.55,0.00016438,2]
[366297182,1750179045624,-629.3,0.00016438,2]
[366297185,1750179045634,-490.0,0.00016438,2]
[366297188,1750179045643,-490.0,0.00016438,2]
[366297191,1750179045653,-490.0,0.00016438,2]
[366297195,1750179045663,-701.82,0.00016438,2]
[366297198,1750179045674,-490.0,0.00016438,2]
[366297201,1750179045686,-855.3,0.00016438,2]
[366297204,1750179045696,-490.0,0.00016438,2]
[366297206,1750179045707,-490.0,0.00016438,2]
[366297208,1750179045716,-1298.19,0.00016438,2]
[366297210,1750179045726,-490.0,0.00016438,2]
[366297212,1750179045737,-490.0,0.00016438,2]
[366297214,1750179045746,-490.0,0.00016438,2]
[366297216,1750179045757,-637.91,0.00016438,2]
[366297218,1750179045766,-153.856495,0.00016438,2]
[366297220,1750179045776,-490.0,0.00016438,2]
[366297223,1750179045793,-490.0,0.00016438,2]
[366297225,1750179045803,-490.0,0.00016438,2]
[366297227,1750179045813,-387.76500153,0.00016438,2]
[366297229,1750179045823,-490.0,0.00016438,2]
[366297231,1750179045833,-2096.23,0.00016438,2]
[366297233,1750179045845,-490.0,0.00016438,2]
[366297235,1750179045855,-1669.99,0.00016438,2]
[366297237,1750179045865,-153.856495,0.00016438,2]
[366297239,1750179045875,-490.0,0.00016438,2]
[366297242,1750179045885,-232.539758,0.00016438,2]
[366297244,1750179045896,-232.539758,0.00016438,2]
[366297246,1750179045906,-400.58346994,0.00016438,2]
[366297248,1750179045916,-232.539758,0.00016438,2]
[366297250,1750179045927,-490.0,0.00016438,2]
[366297252,1750179045939,-1051.67,0.00016438,2]
[366297254,1750179045950,-490.0,0.00016438,2]
[366297256,1750179045959,-490.0,0.00016438,2]
[366297258,1750179045970,-232.539758,0.00016438,2]
[366297260,1750179045980,-232.539758,0.00016438,2]
[366297262,1750179045989,-490.0,0.00016438,2]
[366297264,1750179045999,-232.539758,0.00016438,2]
[366297266,1750179046009,-793.6,0.00016438,2]
[366297268,1750179046019,-590.93,0.00016438,2]
[366297270,1750179046029,-490.0,0.00016438,2]
[366297272,1750179046038,-490.0,0.00016438,2]
[366297274,1750179046048,-740.21,0.00016438,2]
[366297276,1750179046057,-501.35379227,0.00016438,2]
[366297278,1750179046066,-535.37,0.00016438,2]
[366297280,1750179046076,-728.2,0.00016438,2]
[366297282,1750179046087,-490.0,0.00016438,2]
[366297284,1750179046097,-490.0,0.00016438,2]
[366297286,1750179046106,-490.0,0.00016438,2]
[366297288,1750179046116,-490.0,0.00016438,2]
[366297290,1750179046127,-316.78938589,0.00016438,2]
[366297292,1750179046137,-765.39,0.00016438,2]
[366297294,1750179046146,-490.0,0.00016438,2]
[366297296,1750179046156,-943.38,0.00016438,2]
[366297298,1750179046166,-490.0,0.00016438,2]
[366297300,1750179046175,-1981.54,0.00016438,2]
[366297302,1750179046187,-490.0,0.00016438,2]
[366297304,1750179046197,-490.0,0.00016438,2]
[366297306,1750179046207,-490.0,0.00016438,2]
[366297308,1750179046217,-490.0,0.00016438,2]
[366297310,1750179046227,-490.0,0.00016438,2]
[366297312,1750179046237,-490.0,0.00016438,2]
[366297314,1750179046247,-490.0,0.00016438,2]
[366297316,1750179046256,-490.0,0.00016438,2]
[366297318,1750179046265,-490.0,0.00016438,2]
[366297320,1750179046274,-490.0,0.00016438,2]
[366297322,1750179046283,-490.0,0.00016438,2]
[366297324,1750179046291,-490.0,0.00016438,2]
[366297326,1750179046300,-493.25718991,0.00016438,2]
[366297327,1750179046309,-536.83,0.00016438,2]
[366297329,1750179046319,-490.0,0.00016438,2]
[366297332,1750179046329,-490.0,0.00016438,2]
[366297334,1750179046340,-490.0,0.00016438,2]
[366297336,1750179046351,-757.58,0.00016438,2]
[366297338,1750179046361,-490.0,0.00016438,2]
[366297340,1750179046371,-1517.82,0.00016438,2]
[366297342,1750179046382,-929.75,0.00016438,2]
[366297344,1750179046392,-490.0,0.00016438,2]
[366297346,1750179046401,-490.0,0.00016438,2]
[366297348,1750179046411,-490.0,0.00016438,2]
[366297350,1750179046421,-592.72093219,0.00016438,2]
[366297352,1750179046431,-490.0,0.00016438,2]
[366297353,1750179046442,-490.0,0.00016438,2]
[366297355,1750179046451,-1098.3,0.00016438,2]
[366297357,1750179046460,-535.07,0.00016438,2]
[366297360,1750179046470,-490.0,0.00016438,2]
[366297361,1750179046482,-490.0,0.00016438,2]
[366297362,1750179046493,-919.04,0.00016438,2]
[366297363,1750179046503,-355.48407742,0.00016438,2]
[366297364,1750179046513,-490.0,0.00016438,2]
[366297365,1750179046524,-2813.8,0.00016438,2]
[366297366,1750179046533,-490.0,0.00016438,2]
[366297367,1750179046543,-490.0,0.00016438,2]
[366297368,1750179046553,-490.0,0.00016438,2]
[366297369,1750179046565,-1534.13,0.00016438,2]
[366297370,1750179046575,-421.55809701,0.00016438,2]
[366297371,1750179046584,-750.25,0.00016438,2]
[366297372,1750179046593,-490.0,0.00016438,2]
[366297373,1750179046603,-490.0,0.00016438,2]
[366297374,1750179046614,-606.7,0.00016438,2]
[366297375,1750179046624,-490.0,0.00016438,2]
[366297376,1750179046635,-661.25,0.00016438,2]
[366297377,1750179046645,-490.0,0.00016438,2]
[366297379,1750179046655,-466.8231627,0.00016438,2]
[366297381,1750179046665,-490.0,0.00016438,2]
[366297383,1750179046675,-490.0,0.00016438,2]
[366297385,1750179046686,-858.7,0.00016438,2]
[366297387,1750179046696,-490.0,0.00016438,2]
[366297389,1750179046706,-490.0,0.00016438,2]
[366297390,1750179046716,-490.0,0.00016438,2]
[366297391,1750179046725,-490.0,0.00016438,2]
[366297392,1750179046735,-490.0,0.00016438,2]
[366297393,1750179046745,-592.84670006,0.00016438,2]
[366297394,1750179046755,-490.0,0.00016438,2]
[366297395,1750179046765,-777.91,0.00016438,2]
[366297396,1750179046776,-490.0,0.00016438,2]
[366297397,1750179046786,-490.0,0.00016438,2]
[366297398,1750179046796,-490.0,0.00016438,2]
[366297399,1750179046805,-490.0,0.00016438,2]
[366297400,1750179046815,-178.87025188,0.00016438,2]
[366297401,1750179046825,-490.0,0.00016438,2]
[366297402,1750179046838,-490.0,0.00016438,2]
[366297403,1750179046848,-1350.18,0.00016438,2]
[366297404,1750179046857,-490.0,0.00016438,2]
[366297405,1750179046867,-490.0,0.00016438,2]
[366297406,1750179046877,-470.0,0.00016438,2]
[366297407,1750179046886,-500.0,0.00016438,2]
[366297408,1750179046896,-1882.71,0.00016438,2]
[366297409,1750179046905,-500.0,0.00016438,2]
[366297410,1750179046915,-490.0,0.00016438,2]
[366297411,1750179046926,-490.0,0.00016438,2]
[366297412,1750179046937,-490.0,0.00016438,2]
[366297413,1750179046948,-514.84,0.00016438,2]
[366297414,1750179046959,-490.0,0.00016438,2]
[366297416,1750179046969,-490.0,0.00016438,2]
[366297418,1750179046979,-490.0,0.00016438,2]
[366297420,1750179046989,-1424.18,0.00016438,2]
[366297422,1750179046999,-490.0,0.00016438,2]
[366297424,1750179047009,-342.36372303,0.00016438,2]
[366297426,1750179047018,-490.0,0.00016438,2]
[366297428,1750179047028,-1921.85,0.00016438,2]
[366297430,1750179047038,-151.0,0.00016438,2]
[366297432,1750179047047,-151.0,0.00016438,2]
[366297434,1750179047057,-490.0,0.00016438,2]
[366297436,1750179047068,-490.0,0.00016438,2]
[366297438,1750179047077,-182.080087,0.00016438,2]
[366297440,1750179047087,-490.0,0.00016438,2]
[366297442,1750179047097,-1238.17,0.00016438,2]
[366297444,1750179047106,-490.0,0.00016438,2]
[366297446,1750179047115,-490.0,0.00016438,2]
[366297448,1750179047125,-490.0,0.00016438,2]
[366297450,1750179047134,-490.0,0.00016438,2]
[366297452,1750179047143,-490.0,0.00016438,2]
[366297454,1750179047153,-490.0,0.00016438,2]
[366297456,1750179047162,-1456.63,0.00016438,2]
[366297458,1750179047171,-490.0,0.00016438,2]
[366297460,1750179047181,-151.0,0.00016438,2]
[366297461,1750179047192,-490.0,0.00016438,2]
[366297464,1750179047202,-490.0,0.00016438,2]
[366297465,1750179047211,-490.0,0.00016438,2]
[366297467,1750179047220,-590.0,0.00016438,2]
[366297470,1750179047231,-490.0,0.00016438,2]
[366297472,1750179047241,-490.0,0.00016438,2]
[366297474,1750179047252,-1305.87,0.00016438,2]
[366297476,1750179047262,-490.0,0.00016438,2]
[366297478,1750179047272,-490.0,0.00016438,2]
[366297480,1750179047282,-1296.45,0.00016438,2]
[366297482,1750179047292,-490.0,0.00016438,2]
[366297484,1750179047301,-152.000739,0.00016438,2]
[366297486,1750179047311,-500.0,0.00016438,2]
[366297488,1750179047320,-500.0,0.00016438,2]
[366297490,1750179047330,-490.0,0.00016438,2]
[366297492,1750179047340,-500.0,0.00016438,2]
[366297494,1750179047349,-500.0,0.00016438,2]
[366297496,1750179047359,-604.028725,0.00016438,2]
[366297497,1750179047368,-490.0,0.00016438,2]
[366297500,1750179047380,-490.0,0.00016438,2]
[366297502,1750179047390,-490.0,0.00016438,2]
[366297504,1750179047400,-490.0,0.00016438,2]
[366297506,1750179047410,-490.0,0.00016438,2]
[366297508,1750179047420,-490.0,0.00016438,2]
[366297510,1750179047430,-490.0,0.00016438,2]
[366297512,1750179047442,-490.0,0.00016438,2]
[366297514,1750179047452,-773.38,0.00016438,2]
[366297516,1750179047463,-490.0,0.00016438,2]
[366297518,1750179047474,-1555.23,0.00016438,2]
[366297519,1750179047485,-490.0,0.00016438,2]
[366297522,1750179047497,-490.0,0.00016438,2]
[366297523,1750179047509,-490.0,0.00016438,2]
[366297525,1750179047519,-490.0,0.00016438,2]
[366297526,1750179047530,-321.898445,0.00016438,2]
[366297527,1750179047542,-1009.27,0.00016438,2]
[366297528,1750179047553,-490.0,0.00016438,2]
[366297529,1750179047563,-622.85,0.00016438,2]
[366297530,1750179047574,-321.898445,0.00016438,2]
[366297531,1750179047584,-321.898445,0.00016438,2]
[366297532,1750179047594,-456.6460273,0.00016438,2]
[366297533,1750179047604,-333.277908,0.00016438,2]
[366297534,1750179047614,-490.0,0.00016438,2]
[366297535,1750179047625,-333.277908,0.00016438,2]
[366297536,1750179047636,-333.277908,0.00016438,2]
[366297537,1750179047646,-490.0,0.00016438,2]
[366297538,1750179047657,-490.0,0.00016438,2]
[366297539,1750179047668,-490.0,0.00016438,2]
[366297540,1750179047679,-490.0,0.00016438,2]
[366297541,1750179047691,-321.898445,0.00016438,2]
[366297542,1750179047702,-490.0,0.00016438,2]
[366297543,1750179047713,-321.898445,0.00016438,2]
[366297544,1750179047725,-490.0,0.00016438,2]
[366297545,1750179047736,-321.898445,0.00016438,2]
[366297546,1750179047747,-942.43,0.00016438,2]
[366297547,1750179047757,-1195.5,0.00016438,2]
[366297548,1750179047767,-333.277908,0.00016438,2]
[366297549,1750179047777,-333.277908,0.00016438,2]
[366297550,1750179047788,-490.0,0.00016438,2]
[366297551,1750179047799,-490.0,0.00016438,2]
[366297552,1750179047809,-333.277908,0.00016438,2]
[366297553,1750179047820,-270.0974145,0.00016438,2]
[366297554,1750179047831,-490.0,0.00016438,2]
[366297555,1750179047842,-490.0,0.00016438,2]
[366297556,1750179047853,-1870.077137,0.00016438,2]
[366297557,1750179047864,-490.0,0.00016438,2]
[366297558,1750179047874,-490.0,0.00016438,2]
[366297559,1750179047884,-490.0,0.00016438,2]
[366297560,1750179047895,-490.0,0.00016438,2]
[366297561,1750179047906,-1870.077137,0.00016438,2]
[366297562,1750179047917,-490.0,0.00016438,2]
[366297563,1750179047927,-1870.077137,0.00016438,2]
[366297564,1750179047939,-490.0,0.00016438,2]
[366297565,1750179047950,-491.72,0.00016438,2]
[366297566,1750179047961,-490.0,0.00016438,2]
[366297567,1750179047971,-490.0,0.00016438,2]
[366297568,1750179047981,-490.0,0.00016438,2]
[366297569,1750179047992,-490.0,0.00016438,2]
[366297570,1750179048003,-490.0,0.00016438,2]
[366297571,1750179048014,-490.0,0.00016438,2]
[366297572,1750179048024,-490.0,0.00016438,2]
[366297573,1750179048035,-490.0,0.00016438,2]
[366297574,1750179048046,-1870.077137,0.00016438,2]
[366297575,1750179048057,-1870.077137,0.00016438,2]
[366297577,1750179048068,-1870.077137,0.00016438,2]
[366297579,1750179048079,-490.0,0.00016438,2]
[366297582,1750179048089,-490.0,0.00016438,2]
[366297584,1750179048099,-490.0,0.00016438,2]
[366297585,1750179048110,-490.0,0.00016438,2]
[366297588,1750179048121,-490.0,0.00016438,2]
[366297590,1750179048132,-550.5,0.00016438,2]
[366297592,1750179048143,-490.0,0.00016438,2]
[366297594,1750179048154,-490.0,0.00016438,2]
[366297596,1750179048165,-490.0,0.00016438,2]
[366297598,1750179048176,-490.0,0.00016438,2]
[366297599,1750179048186,-490.0,0.00016438,2]
[366297602,1750179048197,-490.0,0.00016438,2]
[366297604,1750179048208,-490.0,0.00016438,2]
[366297606,1750179048218,-427.87760257,0.00016438,2]
[366297608,1750179048230,-1543.82,0.00016438,2]
[366297610,1750179048240,-2930.03,0.00016438,2]
[366297611,1750179048250,-590.0,0.00016438,2]
[366297612,1750179048260,-1755.0,0.00016438,2]
[366297613,1750179048271,-2959.02,0.00016438,2]
[366297614,1750179048281,-490.0,0.00016438,2]
[366297615,1750179048292,-490.0,0.00016438,2]
[366297616,1750179048302,-490.0,0.00016438,2]
[366297617,1750179048312,-721.31,0.00016438,2]
[366297618,1750179048322,-612.33930821,0.00016438,2]
[366297619,1750179048333,-490.0,0.00016438,2]
[366297620,1750179048343,-692.52,0.00016438,2]
[366297621,1750179048353,-688.18,0.00016438,2]
[366297622,1750179048364,-490.0,0.00016438,2]
[366297623,1750179048374,-490.0,0.00016438,2]
[366297624,1750179048384,-490.0,0.00016438,2]
[366297625,1750179048394,-490.0,0.00016438,2]
[366297627,1750179048405,-17226.18,0.00016438,2]
[366297629,1750179048415,-703.38,0.00016438,2]
[366297631,1750179048426,-490.0,0.00016438,2]
[366297633,1750179048440,-302.49414619,0.00016438,2]
[366297635,1750179048450,-490.0,0.00016438,2]
[366297637,1750179048461,-490.0,0.00016438,2]
[366297639,1750179048473,-600.91,0.00016438,2]
[366297641,1750179048489,-437.39450507,0.00016438,2]
[366297643,1750179048500,-490.0,0.00016438,2]
[366297645,1750179048511,-336.77,0.00016438,2]
[366297647,1750179048521,-490.0,0.00016438,2]
[366297649,1750179048534,-772.8,0.00016438,2]
[366297652,1750179048545,-735.55,0.00016438,2]
[366297654,1750179048556,-458.80105212,0.00016438,2]
[366297656,1750179048568,-490.0,0.00016438,2]
[366297658,1750179048579,-490.0,0.00016438,2]
[366297660,1750179048589,-490.0,0.00016438,2]
[366297662,1750179048599,-151.0,0.00016438,2]
[366297664,1750179048609,-490.0,0.00016438,2]
[366297666,1750179048618,-151.0,0.00016438,2]
[366297668,1750179048629,-625.18,0.00016438,2]
[366297670,1750179048640,-151.0,0.00016438,2]
[366297672,1750179048651,-490.0,0.00016438,2]
[366297675,1750179048663,-624.1,0.00016438,2]
[366297677,1750179048674,-490.0,0.00016438,2]
[366297679,1750179048687,-490.0,0.00016438,2]
[366297681,1750179048698,-490.0,0.00016438,2]
[366297683,1750179048708,-490.0,0.00016438,2]
[366297685,1750179048719,-6819.07,0.00016438,2]
[366297687,1750179048729,-490.0,0.00016438,2]
[366297689,1750179048740,-490.0,0.00016438,2]
[366297691,1750179048751,-728.92,0.00016438,2]
[366297693,1750179048761,-2580.28,0.00016438,2]
[366297696,1750179048772,-490.0,0.00016438,2]
[366297698,1750179048782,-490.0,0.00016438,2]
[366297700,1750179048792,-490.0,0.00016438,2]
[366297702,1750179048802,-151.0,0.00016438,2]
[366297725,1750179049025,-490.0,0.00016438,2]
[366297727,1750179049036,-490.0,0.00016438,2]
[366297729,1750179049048,-151.0,0.00016438,2]
[366297731,1750179049059,-490.0,0.00016438,2]
[366297733,1750179049070,-151.0,0.00016438,2]
[366297735,1750179049080,-172.37326,0.00016438,2]
[366297737,1750179049091,-490.0,0.00016438,2]
[366297740,1750179049103,-1322.18,0.00016438,2]
[366297742,1750179049114,-443.35870455,0.00016438,2]
[366297744,1750179049124,-490.0,0.00016438,2]
[366297746,1750179049135,-1295.36,0.00016438,2]
[366297748,1750179049145,-490.0,0.00016438,2]
[366297750,1750179049156,-151.0,0.00016438,2]
[366297752,1750179049167,-151.0,0.00016438,2]
[366297754,1750179049178,-490.0,0.00016438,2]
[366297756,1750179049191,-490.0,0.00016438,2]
[366297759,1750179049202,-490.0,0.00016438,2]
[366297761,1750179049213,-151.0,0.00016438,2]
[366297763,1750179049226,-4908.75,0.00016438,2]
[366297765,1750179049236,-1020.81,0.00016438,2]
[366297767,1750179049247,-1194.29,0.00016438,2]
[366297769,1750179049258,-151.0,0.00016438,2]
[366297771,1750179049270,-490.0,0.00016438,2]
[366297773,1750179049281,-490.0,0.00016438,2]
[366297775,1750179049291,-563.64711256,0.00016438,2]
[366297777,1750179049302,-490.0,0.00016438,2]
[366297779,1750179049313,-679.08,0.00016438,2]
[366297781,1750179049323,-490.0,0.00016438,2]
[366297783,1750179049334,-490.0,0.00016438,2]
[366297785,1750179049345,-794.34,0.00016438,2]
[366297787,1750179049356,-490.0,0.00016438,2]
[366297789,1750179049366,-151.0,0.00016438,2]
[366297791,1750179049377,-436.092218,0.00016438,2]
[366297793,1750179049388,-258.667635,0.00016438,2]
[366297796,1750179049398,-3775.65,0.00016438,2]
[366297798,1750179049409,-1579.59,0.00016438,2]
[366297800,1750179049419,-490.0,0.00016438,2]
[366297802,1750179049429,-490.0,0.00016438,2]
[366297804,1750179049440,-499.56,0.00016438,2]
[366297806,1750179049451,-490.0,0.00016438,2]
[366297808,1750179049461,-490.0,0.00016438,2]
[366297810,1750179049471,-810.59,0.00016438,2]
[366297812,1750179049481,-490.0,0.00016438,2]
[366297814,1750179049493,-490.0,0.00016438,2]
[366297816,1750179049504,-2116.89,0.00016438,2]
[366297819,1750179049515,-490.0,0.00016438,2]
[366297821,1750179049525,-490.0,0.00016438,2]
[366297823,1750179049536,-1477.68,0.00016438,2]
[366297825,1750179049546,-490.0,0.00016438,2]
[366297827,1750179049556,-490.0,0.00016438,2]
[366297829,1750179049565,-625.06,0.00016438,2]
[366297831,1750179049576,-1252.14,0.00016438,2]